bitfinex/quotes_ETHUSD_20241130
["timestamp","ask_amount","ask_price","bid_price","bid_amount"]
[1732928653676,2.7914,3582.5,3581.9,0.1569901]
[1732928654113,2.79114,3582.8,3581.9,2.9487601]
[1732928654308,0.28190351,3582.7,3581.9,2.9487601]
[1732928654504,2.79134,3582.5,3581.9,0.1569901]
[1732928654711,2.79148,3582.4,3581.9,0.1569901]
[1732928655338,2.79134,3582.5,3580.8,1.1965]
[1732928655339,1.1958,3582.2,3580.8,1.1965]
[1732928655503,1.1958,3582.2,3580.7,0.58497979]
[1732928655504,2.79267,3580.8,3580.7,0.30647979]
[1732928655706,3.071937,3580.8,3580.7,0.30647979]
[1732928657734,6.071937,3580.8,3580.7,0.30647979]
[1732928658234,7.267737,3580.8,3580.7,0.30647979]
[1732928658998,7.267737,3580.8,3580.7,9.79e-06]
[1732928659420,7.62610805,3580.8,3580.7,9.79e-06]
[1732928660294,7.367737,3580.8,3580.7,9.79e-06]
[1732928660500,7.62583607,3580.8,3580.7,9.79e-06]
[1732928661110,1.2958,3580.0,3578.4,1.1965]
[1732928661312,2.7943,3578.8,3578.4,1.1965]
[1732928661537,2.79431,3578.7,3578.4,1.1965]
[1732928661741,2.7944,3578.6,3578.4,1.1965]
[1732928662249,2.79462,3578.3,3578.0,1.1965]
[1732928662415,2.79446,3578.5,3578.0,1.1965]
[1732928662820,2.79417,3578.9,3578.0,1.1965]
[1732928663003,2.82206513,3578.9,3578.0,3.99133]
[1732928663223,2.79448,3578.5,3578.0,1.1965]
[1732928663402,2.79448,3578.5,3577.8,0.08616437]
[1732928663403,2.7946,3578.4,3577.8,0.08616437]
[1732928663605,2.82229513,3578.6,3577.8,0.08616437]
[1732928663805,2.79461,3578.4,3577.8,0.08616437]
[1732928664028,2.79449,3578.5,3577.8,2.88115437]
[1732928664216,2.79454,3578.4,3577.8,0.08616437]
[1732928665046,0.02789513,3578.6,3577.9,0.55]
[1732928665206,0.40178651,3578.9,3577.8,0.08616437]
[1732928665207,2.79452,3578.5,3577.8,0.08616437]
[1732928665407,2.79456,3578.4,3577.8,0.08616437]
[1732928665608,0.28224551,3578.4,3577.8,0.08616437]
[1732928665819,2.79443,3578.6,3577.8,0.08616437]
[1732928666021,2.79424,3578.8,3577.9,2.7949]
[1732928666022,2.79446,3578.5,3577.9,2.7949]
[1732928666312,2.79446,3578.5,3577.8,0.08616437]
[1732928666313,2.79454,3578.4,3577.8,0.08616437]
[1732928666737,2.79469,3578.3,3577.8,0.08616437]
[1732928666932,0.02789513,3578.9,3577.8,0.08616437]
[1732928666933,2.79432,3578.7,3577.8,0.08616437]
[1732928667249,0.02789513,3578.6,3577.8,0.08616437]
[1732928667417,2.79437,3578.7,3577.8,0.08616437]
[1732928667616,2.79443,3578.6,3577.9,2.79491]
[1732928668414,2.79454,3578.4,3577.8,0.08616437]
[1732928668732,2.79475,3578.2,3577.8,0.08616437]
[1732928668924,1.1958,3579.2,3577.8,0.08616437]
[1732928668925,3.0,3579.1,3577.8,0.08616437]
[1732928669132,2.79446,3578.6,3577.9,2.79493]
[1732928669651,2.79446,3578.6,3577.8,0.08616437]
[1732928669652,2.79447,3578.5,3577.8,0.08616437]
[1732928670164,2.79447,3578.5,3577.8,2.88116437]
[1732928670945,2.79447,3578.5,3577.8,0.08616437]
[1732928671171,2.79447,3578.5,3577.9,2.79492]
[1732928673736,2.79462,3578.3,3577.8,0.08616437]
[1732928673941,2.79452,3578.5,3577.9,2.79492]
[1732928674140,0.02789513,3579.0,3577.8,2.88116437]
[1732928674414,2.79436,3578.7,3578.0,2.79484]
[1732928674587,2.79436,3578.7,3577.8,2.88116437]
[1732928674588,2.79415,3578.9,3578.2,2.79464]
[1732928674887,2.79423,3578.8,3578.2,4.05734]
[1732928675041,0.40178451,3578.9,3578.2,4.05734]
[1732928675237,2.79416,3578.9,3578.3,2.7946]
[1732928675472,2.79306,3580.3,3578.7,1.2627]
[1732928675689,0.31719413,3580.2,3578.7,1.2627]
[1732928675978,2.79418,3578.9,3578.7,1.2627]
[1732928676184,2.79423,3578.8,3578.7,1.2627]
[1732928676393,2.79417,3578.9,3578.5,1.2627]
[1732928676563,2.79424,3578.8,3578.5,1.2627]
[1732928676884,3.073664,3578.8,3578.5,1.2627]
[1732928677090,2.79424,3578.8,3578.5,1.2627]
[1732928677382,2.79428,3578.8,3578.5,1.2627]
[1732928677683,1.2328,3579.5,3578.5,1.2627]
[1732928677880,2.79384,3579.3,3578.5,1.2627]
[1732928678042,2.79408,3579.0,3578.5,1.2627]
[1732928678376,0.279408,3578.9,3578.5,1.2627]
[1732928679383,2.79408,3579.0,3578.5,1.2627]
[1732928679555,2.79393,3579.2,3578.5,1.2627]
[1732928679756,2.79415,3578.9,3578.5,1.2627]
[1732928679959,2.79392,3579.2,3578.5,1.2627]
[1732928680261,2.79413,3579.0,3578.5,1.2627]
[1732928681193,2.79408,3579.0,3578.5,4.05714]
[1732928681619,2.79408,3579.0,3578.5,1.2627]
[1732928681788,2.79425,3578.8,3578.5,1.2627]
[1732928682197,2.79408,3579.0,3578.5,1.2627]
[1732928682521,3.073488,3579.0,3578.5,1.2627]
[1732928682848,3.073488,3579.0,3577.9,2.7949]
[1732928682849,2.79438,3578.6,3578.0,1.2627]
[1732928683000,2.79455,3578.4,3578.0,1.2627]
[1732928683423,2.79467,3578.3,3578.0,1.2627]
[1732928683621,2.7946,3578.4,3578.0,1.2627]
[1732928685637,2.79462,3578.3,3578.0,1.2627]
[1732928685797,2.79471,3578.2,3578.0,1.2627]
[1732928686004,2.79471,3578.2,3577.8,0.08616437]
[1732928690623,2.79456,3578.4,3577.8,0.08616437]
[1732928690824,2.79466,3578.3,3577.8,2.88117437]
[1732928691030,0.558907,3578.3,3577.8,2.88117437]
[1732928691240,2.79447,3578.5,3577.8,0.08616437]
[1732928691524,2.79447,3578.5,3578.1,2.58011838]
[1732928692101,1.2328,3578.9,3578.1,2.58011838]
[1732928692306,2.79451,3578.5,3578.1,2.58011838]
[1732928693624,2.79462,3578.4,3577.8,0.08616437]
[1732928693831,2.79451,3578.5,3577.8,0.08616437]
[1732928694127,2.79451,3578.5,3577.9,2.79491]
[1732928694425,2.79451,3578.5,3577.9,2.74491]
[1732928694626,2.79456,3578.4,3577.9,2.74491]
[1732928695227,2.79456,3578.4,3577.8,2.88116437]
[1732928695835,2.79456,3578.4,3575.8,0.29068656]
[1732928695836,2.79649,3575.9,3575.8,0.29068656]
[1732928696122,0.681878,3575.9,3574.4,0.54957469]
[1732928696339,2.79671,3575.7,3574.8,2.58011838]
[1732928696643,2.79652,3575.9,3574.8,5.37745838]
[1732928696803,0.02789513,3576.0,3574.8,2.58011838]
[1732928697003,2.79649,3575.9,3574.9,2.79721]
[1732928697201,2.79582,3576.8,3573.7,0.1]
[1732928697202,1.2259,3575.7,3573.7,0.1]
[1732928697446,1.2259,3575.7,3573.4,0.1]
[1732928697447,2.79625,3576.3,3575.5,2.79674]
[1732928697648,0.58839976,3576.4,3575.3,2.58011838]
[1732928697799,0.58839976,3576.4,3574.3,0.57236006]
[1732928697800,2.79651,3575.9,3575.2,2.79704]
[1732928698212,0.18142998,3576.3,3575.3,2.79694]
[1732928698514,2.82415513,3576.2,3575.3,2.79694]
[1732928698817,0.18142998,3576.3,3575.1,3.15428984]
[1732928699032,2.97762998,3576.3,3575.3,2.79695]
[1732928699250,0.58015651,3576.2,3575.6,2.79672]
[1732928699612,0.58015651,3576.2,3575.4,1.2732]
[1732928699824,2.79636,3576.1,3575.4,4.07007]
[1732928700141,2.79643,3576.0,3575.4,4.07007]
[1732928700525,2.79651,3575.9,3575.4,1.2732]
[1732928700711,0.20932511,3576.3,3575.4,1.2732]
[1732928700712,2.97761998,3576.3,3575.6,2.79672]
[1732928700910,2.97761998,3576.3,3575.4,1.2732]
[1732928700911,0.18142998,3576.3,3575.4,4.07007]
[1732928701108,0.18142998,3576.3,3575.7,2.79663]
[1732928701450,4.02186,3576.6,3575.7,2.79663]
[1732928701451,2.79616,3576.4,3575.7,2.79663]
[1732928701807,2.79616,3576.4,3575.5,2.79681]
[1732928702044,4.02186,3576.6,3575.8,2.79657]
[1732928702247,2.79604,3576.5,3575.8,2.79657]
[1732928702448,3.477814,3576.5,3575.8,2.79657]
[1732928702606,0.681774,3576.5,3575.8,2.79654]
[1732928702805,2.79589,3576.7,3576.1,2.79634]
[1732928703235,2.82353513,3577.0,3575.6,3.15428984]
[1732928703563,2.79553,3577.2,3576.4,2.79604]
[1732928703722,2.79553,3577.2,3576.5,2.79601]
[1732928703908,2.79553,3577.2,3576.2,1.2732]
[1732928703909,0.559087,3577.1,3576.7,2.79586]
[1732928704113,2.79517,3577.6,3576.8,2.79573]
[1732928704631,2.7954,3577.3,3576.6,2.79594]
[1732928704831,2.7954,3577.3,3576.5,2.79601]
[1732928705040,3.354461,3577.3,3576.5,2.79601]
[1732928705218,2.79548,3577.2,3576.5,2.79596]
[1732928705418,2.82337513,3577.2,3576.3,0.55]
[1732928705629,2.79534,3577.4,3576.7,2.7958]
[1732928705853,2.79518,3577.6,3576.8,2.79574]
[1732928706017,2.79526,3577.5,3576.8,2.79574]
[1732928706417,5.59024,3577.7,3576.9,2.79564]
[1732928706646,0.40488851,3577.6,3576.9,2.79564]
[1732928706945,2.79538,3577.4,3576.6,2.79587]
[1732928707246,0.02789513,3577.3,3576.6,2.79587]
[1732928707418,2.79541,3577.3,3576.4,2.79602]
[1732928707645,3.11822936,3577.3,3576.4,2.79602]
[1732928707828,0.32281936,3577.3,3576.5,2.79597]
[1732928708027,0.40488851,3577.6,3576.6,2.79593]
[1732928708270,0.40488851,3577.6,3576.9,2.79569]
[1732928708677,2.79511,3577.7,3576.9,2.79569]
[1732928709271,4.02084,3577.9,3576.6,2.79593]
[1732928709272,2.79502,3577.8,3577.0,1.3119]
[1732928710078,2.79502,3577.8,3577.0,2.79558]
[1732928710236,2.79526,3577.5,3576.8,2.79572]
[1732928710776,0.02789513,3578.1,3576.7,0.55]
[1732928711132,2.79548,3577.2,3576.7,0.55]
[1732928711444,0.02789513,3577.1,3576.6,0.55]
[1732928711770,2.79548,3577.2,3576.5,4.10791]
[1732928711964,2.79569,3577.0,3576.5,1.3119]
[1732928712173,3.354558,3577.2,3576.5,1.3119]
[1732928712374,0.559078,3577.2,3576.6,2.79592]
[1732928712529,1.2283,3577.1,3576.4,2.79609]
[1732928712866,1.2283,3577.1,3576.2,3.55]
[1732928713073,2.79601,3576.6,3576.1,1.3119]
[1732928713362,2.79569,3577.0,3576.1,1.3119]
[1732928713570,2.79571,3576.9,3576.3,2.79617]
[1732928714131,0.402399,3577.0,3576.1,4.10823]
[1732928714132,0.402399,3577.0,3576.1,1.3119]
[1732928714384,2.79563,3577.0,3575.4,2.79688]
[1732928714675,1.2283,3577.1,3575.3,1.3119]
[1732928714973,2.7961,3576.4,3575.7,2.79659]
[1732928715186,2.79603,3576.5,3575.9,2.79649]
[1732928715472,0.559196,3576.5,3575.5,2.79678]
[1732928715772,2.79612,3576.4,3575.4,3.34688]
[1732928715934,2.79612,3576.4,3575.7,2.7966]
[1732928716138,2.79624,3576.3,3575.7,2.7966]
[1732928716737,2.79597,3576.6,3575.7,3.3466]
[1732928716951,2.79634,3576.1,3575.7,0.55]
[1732928717143,1.2283,3576.4,3575.3,1.3119]
[1732928717331,2.79637,3576.1,3575.3,4.10886]
[1732928717530,2.79632,3576.2,3575.6,2.79671]
[1732928717746,2.79613,3576.4,3575.8,2.79652]
[1732928718141,2.79613,3576.4,3575.6,2.79671]
[1732928718446,2.79595,3576.6,3575.6,2.79671]
[1732928718447,2.79619,3576.3,3575.6,2.79671]
[1732928718658,2.79619,3576.3,3575.7,2.79664]
[1732928719239,2.79626,3576.2,3575.4,0.55]
[1732928719477,2.79699,3575.3,3574.6,4.10938]
[1732928719737,2.79692,3575.4,3574.7,2.79742]
[1732928719938,2.79692,3575.4,3574.6,4.10938]
[1732928719939,2.79705,3575.2,3574.6,4.10938]
[1732928720139,2.79692,3575.4,3574.2,3.15428984]
[1732928720140,0.559397,3575.1,3574.2,4.46618984]
[1732928720484,2.79709,3575.2,3574.3,2.79774]
[1732928720640,2.79725,3575.0,3574.3,2.79774]
[1732928720835,2.79728,3574.9,3574.2,1.3119]
[1732928721066,2.79749,3574.7,3574.2,1.3119]
[1732928721304,2.79809,3573.9,3572.9,1.5904]
[1732928721440,2.79823,3573.7,3573.0,2.79871]
[1732928721790,3.480629,3573.8,3573.0,2.7987]
[1732928721941,2.79814,3573.8,3572.9,4.11071]
[1732928722135,2.79814,3573.8,3572.1,0.3785]
[1732928722136,1.2283,3574.1,3572.1,0.3785]
[1732928722438,1.2283,3574.1,3572.9,2.79884]
[1732928722652,1.2283,3574.1,3572.2,4.11125]
[1732928722653,2.79839,3573.5,3572.2,4.11125]
[1732928722983,2.79825,3573.7,3572.9,2.79882]
[1732928723192,1.2283,3573.3,3572.3,2.7993]
[1732928723344,2.79873,3573.1,3572.3,2.79926]
[1732928723546,2.7989,3572.9,3572.2,2.79937]
[1732928723879,1.2283,3573.1,3571.1,0.14442875]
[1732928724137,1.2283,3573.1,3569.8,1.42116806]
[1732928724138,0.1730984,3573.0,3571.5,2.79988]
[1732928724381,2.79906,3572.7,3571.9,2.79961]
[1732928724690,1.2283,3572.9,3571.4,2.80002]
[1732928724840,2.79805,3574.0,3572.1,3.15428984]
[1732928725192,2.79809,3573.9,3573.1,2.79862]
[1732928725342,0.599769,3574.1,3573.5,2.79837]
[1732928725686,1.2283,3574.2,3573.8,0.55]
[1732928725888,1.2283,3574.2,3572.1,0.54752744]
[1732928726184,0.56957402,3574.5,3571.7,0.1]
[1732928726185,1.319,3573.2,3572.5,2.79909]
[1732928726605,1.319,3573.2,3571.9,1.2021]
[1732928726606,0.411759,3573.1,3571.9,1.2021]
[1732928726768,4.11762,3573.2,3572.1,2.79946]
[1732928726769,1.319,3573.2,3572.1,2.79946]
[1732928726968,2.79876,3573.1,3572.2,2.79938]
[1732928727209,2.79886,3572.9,3572.2,2.79938]
[1732928727775,2.79869,3573.1,3571.9,1.2021]
[1732928727983,2.79889,3572.9,3572.1,2.79944]
[1732928728186,2.79876,3573.0,3571.9,2.79958]
[1732928728372,2.79894,3572.8,3572.0,2.79948]
[1732928728567,2.79876,3573.0,3572.1,2.79946]
[1732928728884,2.79876,3573.0,3572.3,2.79929]
[1732928729097,3.24894656,3572.9,3572.1,2.79947]
[1732928729498,0.45008656,3572.9,3572.2,0.55]
[1732928729718,0.38310562,3573.1,3572.6,2.79903]
[1732928730036,1.319,3573.2,3572.2,0.55]
[1732928730234,4.08499,3573.9,3572.7,0.55]
[1732928730422,1.2869,3573.9,3573.2,2.79861]
[1732928730595,1.75215603,3573.9,3573.3,2.79852]
[1732928730798,1.2869,3573.9,3573.3,2.79852]
[1732928731634,1.2869,3573.9,3573.7,2.79821]
[1732928731937,1.2869,3574.3,3573.7,2.79819]
[1732928732140,0.408452,3574.2,3573.4,0.55]
[1732928732435,2.79788,3574.2,3573.5,2.79837]
[1732928732591,2.798,3574.0,3573.2,0.55]
[1732928732794,0.06873273,3573.9,3573.5,0.55]
[1732928733146,1.2869,3574.3,3573.5,2.79834]
[1732928733350,0.06513697,3573.8,3573.7,2.79822]
[1732928733496,0.06513697,3573.8,3573.6,0.55]
[1732928733497,1.2869,3574.3,3573.9,0.55]
[1732928733864,1.2869,3574.3,3573.6,0.55]
[1732928733865,0.06369959,3574.2,3573.6,0.55]
[1732928734209,1.2869,3574.0,3572.6,1.2849]
[1732928734410,2.79823,3573.7,3572.6,1.2849]
[1732928734727,0.06364167,3573.6,3572.6,1.2849]
[1732928735126,0.06364167,3573.6,3573.0,2.79869]
[1732928735301,0.06364167,3573.6,3573.2,2.79861]
[1732928735497,2.79815,3573.8,3573.0,2.79869]
[1732928735794,0.75188739,3573.7,3573.2,2.79859]
[1732928736205,0.75188739,3573.7,3573.4,2.79845]
[1732928736436,0.06358339,3573.7,3573.4,2.79845]
[1732928736927,1.2869,3574.0,3573.5,2.79834]
[1732928737127,0.06355683,3573.6,3573.3,2.79847]
[1732928737338,1.2869,3574.0,3573.3,2.79849]
[1732928737540,0.0635748,3573.5,3573.4,2.79845]
[1732928737772,0.06341599,3573.5,3573.4,2.79845]
[1732928737923,1.2869,3574.0,3573.4,2.79845]
[1732928738258,0.06343148,3573.9,3573.6,2.79826]
[1732928738444,0.06343148,3573.9,3573.4,2.79845]
[1732928738775,0.06343148,3573.9,3572.8,3.34892]
[1732928738776,0.06343148,3573.9,3573.2,2.79859]
[1732928738920,0.06343148,3573.9,3573.4,2.79844]
[1732928739121,0.06343148,3573.9,3573.2,2.79859]
[1732928739337,0.06343148,3573.9,3572.8,0.55]
[1732928739338,1.2869,3574.0,3573.0,2.79876]
[1732928739561,2.86163631,3573.9,3573.0,2.79876]
[1732928739768,2.79827,3573.7,3573.1,2.79868]
[1732928740060,0.0634783,3573.6,3573.3,2.79853]
[1732928740263,0.0634783,3573.6,3573.5,2.79837]
[1732928740452,1.2869,3574.0,3573.5,2.79837]
[1732928740627,1.43406682,3574.0,3573.5,2.79837]
[1732928740820,1.43406682,3574.0,3573.2,0.55]
[1732928740821,0.06141441,3573.9,3573.2,0.55]
[1732928741031,1.43406682,3574.0,3573.2,0.55]
[1732928741032,1.43406682,3574.0,3573.8,2.79812]
[1732928741232,0.06141441,3573.9,3573.8,2.79812]
[1732928741668,1.2869,3574.6,3574.3,2.79772]
[1732928742469,2.79711,3575.2,3574.5,2.79759]
[1732928742621,2.79712,3575.1,3574.5,2.79759]
[1732928742820,0.408402,3575.0,3574.5,2.79759]
[1732928743063,0.06157008,3574.9,3574.5,2.79759]
[1732928743361,2.85891008,3574.9,3573.6,2.79824]
[1732928743569,2.85891008,3574.9,3574.2,2.79776]
[1732928743764,0.60644421,3574.8,3574.2,2.79776]
[1732928743933,0.06155142,3574.7,3574.0,2.79795]
[1732928744130,0.06155142,3574.7,3574.3,2.79773]
[1732928744330,0.60644421,3574.8,3574.3,2.79773]
[1732928744565,0.06164882,3574.7,3574.4,2.79766]
[1732928744778,1.2869,3575.3,3574.4,2.79766]
[1732928745073,0.05859452,3575.2,3575.0,2.79714]
[1732928745272,0.05859452,3575.2,3575.1,2.79712]
[1732928745477,1.2869,3575.7,3575.3,2.79693]
[1732928745624,1.2869,3575.7,3575.3,2.79691]
[1732928745969,1.2869,3575.7,3575.1,2.79709]
[1732928745970,0.05568792,3575.6,3575.1,2.79709]
[1732928746173,0.05568792,3575.6,3575.4,2.79688]
[1732928746671,0.05568792,3575.6,3575.5,2.79681]
[1732928747163,1.3074,3576.1,3575.6,2.79672]
[1732928747373,0.18683407,3576.0,3575.4,2.79688]
[1732928747673,0.24273098,3576.0,3575.5,2.7968]
[1732928747969,0.24273098,3576.0,3575.1,1.37]
[1732928747970,0.4346521,3575.9,3575.6,2.79669]
[1732928748125,0.4346521,3575.9,3575.4,2.79688]
[1732928748126,0.05587841,3575.8,3575.4,2.79688]
[1732928748331,0.18683407,3576.0,3575.5,2.79675]
[1732928748562,0.05588773,3575.9,3575.5,2.79675]
[1732928748763,0.05588773,3575.9,3575.1,1.37]
[1732928748764,0.05588773,3575.9,3575.3,2.7969]
[1732928749072,0.21089991,3575.9,3575.3,2.792802]
[1732928749367,0.05587841,3575.8,3575.3,2.792802]
[1732928749768,0.05587841,3575.8,3574.7,4.16737]
[1732928749769,0.05587841,3575.8,3574.8,0.55]
[1732928749933,0.15501218,3575.9,3574.8,0.55]
[1732928749934,0.15501218,3575.9,3574.8,2.79735]
[1732928750127,1.3074,3576.1,3574.9,3.70428984]
[1732928750528,0.05589706,3576.0,3575.0,2.7972]
[1732928750741,1.3074,3576.5,3575.9,2.79649]
[1732928750952,1.3074,3576.5,3576.2,2.79624]
[1732928750953,0.05600658,3576.4,3576.2,2.79624]
[1732928751152,0.05600658,3576.4,3575.9,2.79649]
[1732928751373,0.05600658,3576.4,3576.1,2.79627]
[1732928751938,0.05600658,3576.4,3576.3,2.79618]
[1732928752243,1.86806081,3577.0,3576.4,2.79604]
[1732928752563,0.52275172,3576.9,3576.8,2.79579]
[1732928752761,0.05638964,3576.9,3576.8,2.79579]
[1732928753186,0.05638964,3576.9,3576.6,2.79593]
[1732928753476,1.3074,3577.0,3576.7,2.79583]
[1732928753679,1.3074,3577.0,3576.3,2.79616]
[1732928753977,1.3074,3577.0,3576.2,2.79619]
[1732928753978,0.46493013,3576.9,3576.7,2.79581]
[1732928754153,1.3074,3577.0,3576.7,2.79581]
[1732928754348,1.3074,3577.4,3576.8,2.79577]
[1732928754573,1.3074,3577.4,3576.2,2.79622]
[1732928754574,1.3074,3577.4,3576.9,2.7957]
[1732928754866,0.410258,3577.3,3576.7,2.79585]
[1732928755066,0.410258,3577.3,3577.0,2.79563]
[1732928755940,0.410258,3577.3,3577.2,2.79548]
[1732928756176,4.10218,3578.1,3577.5,2.79523]
[1732928756445,1.3074,3578.1,3577.5,2.79523]
[1732928756593,2.79448,3578.5,3577.0,0.55]
[1732928756793,4.10188,3578.5,3577.2,0.55]
[1732928757104,0.410188,3578.4,3577.9,2.79493]
[1732928757299,1.3074,3578.5,3577.9,2.79493]
[1732928757459,1.3074,3578.5,3577.2,2.79548]
[1732928757460,0.05146675,3578.3,3577.5,2.79524]
[1732928757797,0.05153566,3578.2,3577.5,2.79519]
[1732928757958,2.84629566,3578.2,3577.6,2.79515]
[1732928758161,0.46689023,3578.2,3577.0,1.92]
[1732928758378,1.3074,3578.5,3577.7,2.79503]
[1732928758590,0.05165487,3578.4,3577.4,3.15428984]
[1732928759056,0.05165487,3578.4,3578.0,2.79479]
[1732928759258,0.05165487,3578.4,3578.1,2.79476]
[1732928759453,2.79432,3578.7,3578.1,2.79476]
[1732928759687,0.74633221,3578.6,3578.1,2.79476]
[1732928759906,0.74633221,3578.6,3577.8,1.2625]
[1732928760072,0.74633221,3578.6,3578.1,2.79476]
[1732928760267,0.74633221,3578.6,3577.8,4.0575]
[1732928760268,2.79456,3578.4,3577.8,2.79499]
[1732928760569,0.05177879,3578.3,3578.1,2.79477]
[1732928760769,2.79432,3578.7,3578.1,2.79477]
[1732928760978,0.46720915,3578.6,3578.1,2.79477]
[1732928761178,0.46720915,3578.6,3578.2,2.79466]
[1732928761378,0.05204715,3578.6,3578.4,2.79453]
[1732928761703,1.3573,3578.8,3578.3,2.79454]
[1732928761887,0.05206989,3578.5,3578.1,1.2625]
[1732928762093,1.3573,3579.1,3578.4,2.79454]
[1732928762285,0.415115,3579.0,3578.4,2.79446]
[1732928762459,0.05217184,3579.0,3578.8,2.79415]
[1732928762669,0.05217184,3579.0,3578.9,2.79415]
[1732928763002,0.05217184,3579.0,3578.3,5.58924]
[1732928763201,1.3573,3579.5,3578.9,2.79415]
[1732928763506,3.3173415,3579.4,3578.7,2.79429]
[1732928763711,0.5235615,3579.4,3578.2,2.79467]
[1732928763953,2.79456,3578.4,3577.7,2.79509]
[1732928764076,2.79439,3578.6,3577.7,2.79509]
[1732928764406,1.3573,3578.6,3577.8,2.795]
[1732928764608,1.3573,3578.6,3577.4,3.15428984]
[1732928764609,2.79471,3578.2,3577.4,3.15428984]
[1732928764900,0.33162012,3578.1,3577.4,3.15428984]
[1732928765065,0.05214912,3578.1,3577.4,3.15428984]
[1732928765265,0.05214912,3578.1,3577.4,5.94956984]
[1732928765485,0.05214912,3578.1,3577.7,2.79508]
[1732928765809,2.79461,3578.4,3577.7,2.79508]
[1732928765988,0.74676602,3578.3,3577.4,3.15428984]
[1732928766191,0.05213502,3578.3,3577.7,2.79508]
[1732928766374,4.1517,3578.6,3577.9,2.79491]
[1732928766375,1.3573,3578.6,3577.9,2.79491]
[1732928766576,0.05214274,3578.5,3577.9,2.79491]
[1732928766763,0.05214274,3578.5,3578.0,2.79485]
[1732928766965,0.42038327,3578.4,3577.8,2.79495]
[1732928767207,0.05212048,3578.3,3577.9,2.79491]
[1732928767510,0.05212048,3578.3,3577.7,2.79509]
[1732928767802,0.05212048,3578.3,3577.8,2.79499]
[1732928767960,0.05212048,3578.3,3577.4,3.15428984]
[1732928767961,0.05212048,3578.3,3578.0,2.79478]
[1732928768861,0.05212048,3578.3,3578.2,2.7947]
[1732928769084,0.05212048,3578.3,3577.9,1.2303]
[1732928769289,1.2677,3578.9,3577.6,2.79516]
[1732928769290,2.7945,3578.5,3577.6,2.79516]
[1732928769488,1.2677,3578.9,3577.6,2.79516]
[1732928769489,0.05190666,3578.2,3577.6,0.55]
[1732928769806,0.05189735,3578.1,3577.9,2.79488]
[1732928770111,2.7944,3578.6,3577.6,0.55]
[1732928770404,0.685635,3578.6,3578.1,2.79472]
[1732928770565,0.05192484,3578.5,3578.1,2.79472]
[1732928770769,0.05192484,3578.5,3578.3,2.79456]
[1732928770975,0.05192484,3578.5,3578.4,2.79454]
[1732928771183,1.2677,3578.9,3578.4,2.79454]
[1732928771184,1.2677,3578.9,3578.6,2.79434]
[1732928771410,1.2677,3578.9,3577.9,5.94917984]
[1732928771411,0.05195277,3578.8,3578.7,2.7943]
[1732928771640,4.640918,3579.3,3578.7,2.7943]
[1732928771809,0.05208578,3579.2,3578.5,2.79445]
[1732928772334,0.05208578,3579.2,3578.3,1.2303]
[1732928772498,0.52137116,3579.2,3578.8,2.79417]
[1732928772697,0.52137116,3579.2,3578.6,2.79438]
[1732928773098,2.79401,3579.1,3578.4,2.79452]
[1732928773348,2.79422,3578.9,3578.3,1.2303]
[1732928773544,1.2677,3578.5,3577.7,2.79506]
[1732928773842,0.05213438,3578.4,3578.0,2.7948]
[1732928774034,0.05213438,3578.4,3577.3,3.0]
[1732928774035,0.05213438,3578.4,3578.3,4.57492]
[1732928774207,1.2677,3579.4,3578.3,4.57492]
[1732928774396,0.45840312,3579.3,3578.8,2.79419]
[1732928774634,0.45840312,3579.3,3578.6,2.79437]
[1732928774842,2.794,3579.1,3578.4,3.15428984]
[1732928774998,0.37747743,3579.0,3578.1,2.79477]
[1732928775239,2.79463,3578.3,3577.6,2.79513]
[1732928775441,2.84688262,3578.2,3577.5,2.79521]
[1732928775769,1.31986262,3578.2,3577.7,2.79504]
[1732928775984,1.31986262,3578.2,3577.5,2.79517]
[1732928776149,1.31986262,3578.2,3577.8,2.79499]
[1732928776479,0.05216262,3578.2,3577.8,2.79499]
[1732928776686,0.05216262,3578.2,3577.4,4.38458984]
[1732928776687,0.05216262,3578.2,3577.6,2.79516]
[1732928776846,2.79463,3578.3,3577.4,7.17987984]
[1732928777043,3.12624475,3578.2,3577.5,2.79523]
[1732928777276,0.05203175,3578.2,3578.1,2.79477]
[1732928777560,0.05203175,3578.2,3578.1,4.57507]
[1732928777742,4.06163,3579.2,3578.5,2.79445]
[1732928777943,3.479541,3579.1,3578.5,2.79445]
[1732928778165,3.52982823,3579.1,3578.4,2.79452]
[1732928778335,0.73582823,3579.1,3578.5,2.79445]
[1732928778537,3.52983823,3579.1,3578.5,2.79445]
[1732928779008,0.47975382,3579.0,3578.2,0.55]
[1732928779135,0.04852379,3578.9,3578.2,0.55]
[1732928779336,2.79438,3578.7,3577.6,3.15428984]
[1732928779567,0.04852379,3578.9,3578.4,2.79448]
[1732928779839,1.2677,3579.2,3578.2,0.55]
[1732928780065,0.04863595,3579.1,3578.5,2.79443]
[1732928780372,2.79422,3578.9,3578.1,2.79471]
[1732928780576,0.7310736,3578.9,3578.1,2.79471]
[1732928780780,0.04861021,3578.8,3578.4,2.79452]
[1732928781135,4.06166,3579.2,3578.0,1.2303]
[1732928781136,2.79404,3579.1,3578.2,2.79463]
[1732928781333,2.79404,3579.1,3578.0,1.2303]
[1732928781334,0.68557,3579.1,3578.4,2.79452]
[1732928781579,0.04864447,3579.0,3578.4,2.79452]
[1732928781882,0.04864447,3579.0,3578.0,4.02514]
[1732928782047,2.79436,3578.7,3578.1,0.55]
[1732928782236,2.79436,3578.7,3577.9,0.55]
[1732928782237,0.04861699,3578.6,3577.9,0.55]
[1732928782464,0.04861699,3578.6,3577.9,3.34493]
[1732928782647,1.2677,3578.5,3577.8,3.15428984]
[1732928782863,3.25429006,3578.4,3577.8,5.94926984]
[1732928783250,0.45967006,3578.4,3577.8,2.79496]
[1732928783482,0.04859836,3578.4,3578.0,2.79479]
[1732928783696,0.04859836,3578.4,3577.8,5.94924984]